[Event "4th Tamil Nadu Circuit-IM 2023"]
[Site "Pollachi"]
[Date "2023.11.10"]
[Round "7.2"]
[White "Shaik Sumer Arsh"]
[Black "Srihari L"]
[Result "1/2-1/2"]
[ECO "E92"]
[WhiteElo "2273"]
[BlackElo "2225"]
[Annotator "RC"]
[PlyCount "64"]
[EventDate "2023.10.23"]
[EventType "tourn"]
[EventCountry "IND"]
[SourceTitle "playchess.com"]
[Source "ChessBase"]
[SourceQuality "1"]
[TimeControl "5400+30"]

1. d4 {[%emt 0:00:04]} Nf6 {[%emt 0:00:02]} 2. c4 {[%emt 0:00:08]} g6 {[%emt 0:00:03]} 3. Nc3 {[%emt 0:00:06]} Bg7 {[%emt 0:00:04]} 4. e4 {[%emt 0:00:06]} d6 {[%emt 0:00:03]} 5. Nf3 {[%emt 0:00:05]} O-O {[%emt 0:00:06]} 6. Be2 {[%emt 0:00:03]} e5 {[%emt 0:00:06]} 7. Be3 {[%emt 0:00:07]} exd4 {[%emt 0:00:11]} 8. Nxd4 {[%emt 0:00:08]} Re8 {[%emt 0:00:06]} 9. f3 {[%emt 0:00:07]} c6 {[%emt 0:00:07]} 10. Bf2 {[%emt 0:00:05]} d5 {[%emt 0:00:11]} 11. exd5 {[%emt 0:00:09]} cxd5 {[%emt 0:00:05]} 12. O-O {[%emt 0:00:06]} Nc6 {[%emt 0:00:05]} 13. c5 {[%emt 0:00:10]} Re5 {[%emt 0:00:22]} 14. Qd2 {[%emt 0:08:20]} Qf8 {[%emt 0:02:08]} 15. Nxc6 {[%emt 0:00:45]} bxc6 {[%emt 0:00:08]} 16. b4 {[%emt 0:01:56]} Bd7 {[%emt 0:29:41]} 17. Bd3 {[%emt 0:39:30]} Bh6 {[%emt 0:09:39]} 18. Qc2 {[%emt 0:01:25]} Be3 {[%emt 0:02:36]} 19. Bxe3 {[%emt 0:22:20]} Rxe3 {[%emt 0:00:12]} 20. Rae1 {[%emt 0:01:19]} Qe7 {[%emt 0:12:19]} 21. Qd2 {[%emt 0:01:09]} Re8 {[%emt 0:00:54]} 22. Rxe3 {[%emt 0:01:51]} Qxe3+ {[%emt 0:01:16]} 23. Qxe3 {[%emt 0:00:02]} Rxe3 {[%emt 0:00:10]} 24. Rd1 {[%emt 0:00:02]} Bf5 {[%emt 0:00:10]} 25. Bxf5 {[%emt 0:00:23]} Rxc3 {[%emt 0:00:30]} 26. Bc8 {[%emt 0:02:09]} a5 {[%emt 0:00:14]} 27. bxa5 {[%emt 0:12:09]} Rxc5 {[%emt 0:00:17]} 28. a6 {[%emt 0:00:04]} Ra5 {[%emt 0:00:07]} 29. Bb7 {[%emt 0:05:28]} c5 {[%emt 0:00:41]} 30. Bxd5 {[%emt 0:01:13]} Nxd5 {[%emt 0:00:02]} 31. Rxd5 {[%emt 0:00:09]} Rxa2 {[%emt 0:00:07]} 32. Rxc5 {[%emt 0:00:11]} Rxa6 {[%emt 0:00:38]} 1/2-1/2

[Event "4th Tamil Nadu Circuit-IM 2023"]
[Site "Pollachi"]
[Date "2023.11.10"]
[Round "7.4"]
[White "Laddha, Shubh Jayesh"]
[Black "Gochelashvili, David"]
[Result "0-1"]
[ECO "C77"]
[WhiteElo "2373"]
[BlackElo "2304"]
[Annotator "RC"]
[PlyCount "98"]
[EventDate "2023.10.23"]
[EventType "tourn"]
[EventCountry "IND"]
[SourceTitle "playchess.com"]
[Source "ChessBase"]
[SourceQuality "1"]
[TimeControl "5400+30"]

1. e4 {[%emt 0:00:02]} e5 {[%emt 0:00:13]} 2. Nf3 {[%emt 0:00:04]} Nc6 {[%emt 0:00:08]} 3. Bb5 {[%emt 0:00:03]} a6 {[%emt 0:00:07]} 4. Ba4 {[%emt 0:00:04]} Nf6 {[%emt 0:00:08]} 5. d3 {[%emt 0:00:04]} d6 {[%emt 0:00:33]} 6. c3 {[%emt 0:00:06]} g6 {[%emt 0:00:18]} 7. O-O {[%emt 0:00:09]} Bg7 {[%emt 0:00:04]} 8. Re1 {[%emt 0:00:10]} O-O {[%emt 0:00:08]} 9. Nbd2 {[%emt 0:00:23]} Kh8 {[%emt 0:03:22]} 10. Nf1 {[%emt 0:10:20]} b5 {[%emt 0:12:29]} 11. Bc2 {[%emt 0:01:23]} d5 {[%emt 0:00:50]} 12. Ng3 {[%emt 0:05:22]} dxe4 {[%emt 0:16:04]} 13. dxe4 {[%emt 0:03:36]} Qe7 {[%emt 0:10:41]} 14. Qe2 {[%emt 0:04:15]} Na5 {[%emt 0:13:50]} 15. b4 {[%emt 0:11:08]} Nc4 {[%emt 0:00:00]} 16. Nd2 {[%emt 0:14:31]} Be6 {[%emt 0:00:00]} 17. a4 {[%emt 0:12:11]} Nd7 {[%emt 0:00:17]} 18. Nxc4 {[%emt 0:13:37]} Bxc4 {[%emt 0:00:15]} 19. Bd3 {[%emt 0:00:36]} Nb6 {[%emt 0:05:50]} 20. axb5 {[%emt 0:05:15]} axb5 {[%emt 0:00:07]} 21. Be3 {[%emt 0:01:13]} Rxa1 {[%emt 0:07:11]} 22. Rxa1 {[%emt 0:00:09]} Rd8 {[%emt 0:00:08]} 23. Bxc4 {[%emt 0:01:52]} Nxc4 {[%emt 0:00:10]} 24. Bc5 {[%emt 0:01:31]} Qd7 {[%emt 0:01:37]} 25. Qf3 {[%emt 0:02:36]} Nd2 {[%emt 0:02:35]} 26. Qd1 {[%emt 0:02:22]} h5 {[%emt 0:07:32]} 27. Be3 {[%emt 0:06:42]} h4 {[%emt 0:00:29]} 28. Qxd2 {[%emt 0:03:16]} Qxd2 {[%emt 0:00:05]} 29. Bxd2 {[%emt 0:00:03]} Rxd2 {[%emt 0:00:09]} 30. Nf1 {[%emt 0:00:43]} Rc2 {[%emt 0:00:05]} 31. Ra3 {[%emt 0:00:54]} Bh6 {[%emt 0:03:18]} 32. h3 {[%emt 0:00:48]} Kg7 {[%emt 0:03:24]} 33. Rb3 {[%emt 0:00:29]} Rc1 {[%emt 0:00:40]} 34. g3 {[%emt 0:00:54]} hxg3 {[%emt 0:00:47]} 35. fxg3 {[%emt 0:00:07]} Bd2 {[%emt 0:00:08]} 36. Kf2 {[%emt 0:00:52]} Bxc3 {[%emt 0:00:11]} 37. Ne3 {[%emt 0:00:20]} Bd4 {[%emt 0:02:01]} 38. Kf3 {[%emt 0:00:39]} c6 {[%emt 0:00:47]} 39. g4 {[%emt 0:00:18]} Rh1 {[%emt 0:00:45]} 40. Kg2 {[%emt 0:00:18]} Re1 {[%emt 0:00:07]} 41. Kf3 {[%emt 0:00:41]} Rxe3+ {[%emt 0:00:18]} 42. Rxe3 {[%emt 0:00:02]} Bxe3 {[%emt 0:00:05]} 43. Kxe3 {[%emt 0:00:03]} g5 {[%emt 0:00:07]} 44. Kd3 {[%emt 0:00:10]} Kf6 {[%emt 0:00:05]} 45. Kc3 {[%emt 0:00:09]} Ke6 {[%emt 0:00:04]} 46. Kb3 {[%emt 0:00:24]} Kd6 {[%emt 0:00:04]} 47. Kc3 {[%emt 0:00:04]} c5 {[%emt 0:00:06]} 48. Kb3 {[%emt 0:00:08]} cxb4 {[%emt 0:00:08]} 49. Kxb4 {[%emt 0:00:03]} Kc6 {[%emt 0:00:03]} 0-1

[Event "4th Tamil Nadu Circuit-IM 2023"]
[Site "Pollachi"]
[Date "2023.11.10"]
[Round "7.5"]
[White "Nandhidhaa, P V"]
[Black "Podolchenko, Evgeniy"]
[Result "1-0"]
[ECO "A11"]
[WhiteElo "2272"]
[BlackElo "2395"]
[Annotator "RC"]
[PlyCount "89"]
[EventDate "2023.10.23"]
[EventType "tourn"]
[EventCountry "IND"]
[SourceTitle "playchess.com"]
[Source "ChessBase"]
[SourceQuality "1"]
[TimeControl "5400+30"]

1. Nf3 {[%emt 0:01:03]} Nf6 {[%emt 0:00:08]} 2. g3 {[%emt 0:00:09]} d5 {[%emt 0:00:10]} 3. Bg2 {[%emt 0:00:05]} c6 {[%emt 0:00:04]} 4. O-O {[%emt 0:00:07]} Bg4 {[%emt 0:00:09]} 5. c4 {[%emt 0:01:43]} e6 {[%emt 0:00:19]} 6. cxd5 {[%emt 0:00:22]} exd5 {[%emt 0:00:28]} 7. h3 {[%emt 0:00:08]} Bxf3 {[%emt 0:01:04]} 8. exf3 {[%emt 0:01:50]} Be7 {[%emt 0:00:39]} 9. d3 {[%emt 0:00:23]} O-O {[%emt 0:00:25]} 10. f4 {[%emt 0:02:38]} Ne8 {[%emt 0:02:05]} 11. Nd2 {[%emt 0:03:31]} a5 {[%emt 0:11:02]} 12. Nf3 {[%emt 0:03:41]} a4 {[%emt 0:03:33]} 13. Rb1 {[%emt 0:03:54]} Nd6 {[%emt 0:00:33]} 14. Qc2 {[%emt 0:04:43]} Nd7 {[%emt 0:05:56]} 15. Bd2 {[%emt 0:00:58]} Re8 {[%emt 0:01:15]} 16. h4 {[%emt 0:05:29]} Nb5 {[%emt 0:01:20]} 17. Rfe1 {[%emt 0:05:45]} Bf6 {[%emt 0:01:24]} 18. Rxe8+ {[%emt 0:02:09]} Qxe8 {[%emt 0:00:02]} 19. Re1 {[%emt 0:00:08]} Qd8 {[%emt 0:04:59]} 20. Bh3 {[%emt 0:02:21]} a3 {[%emt 0:13:55]} 21. b3 {[%emt 0:00:21]} Nb8 {[%emt 0:04:07]} 22. h5 {[%emt 0:11:22]} Na6 {[%emt 0:01:55]} 23. h6 {[%emt 0:04:56]} gxh6 {[%emt 0:00:33]} 24. Ne5 {[%emt 0:01:43]} Nac7 {[%emt 0:06:10]} 25. Qd1 {[%emt 0:03:57]} Qf8 {[%emt 0:00:47]} 26. Qh5 {[%emt 0:05:57]} Bg7 {[%emt 0:09:04]} 27. Kg2 {[%emt 0:05:00]} Re8 {[%emt 0:07:07]} 28. Bd7 {[%emt 0:02:54]} Rd8 {[%emt 0:00:49]} 29. Bf5 {[%emt 0:03:31]} Re8 {[%emt 0:04:08]} 30. Ba5 {[%emt 0:04:28]} Bxe5 {[%emt 0:01:20]} 31. fxe5 {[%emt 0:00:31]} Ne6 {[%emt 0:00:23]} 32. Bd2 {[%emt 0:01:15]} Ng7 {[%emt 0:00:52]} 33. Bxh7+ {[%emt 0:03:28]} Kxh7 {[%emt 0:01:18]} 34. Qxh6+ {[%emt 0:00:06]} Kg8 {[%emt 0:00:03]} 35. Rh1 {[%emt 0:01:05]} Nh5 {[%emt 0:01:52]} 36. Qxh5 {[%emt 0:00:53]} Qg7 {[%emt 0:00:02]} 37. Bf4 {[%emt 0:03:49]} Re6 {[%emt 0:00:35]} 38. Rh4 {[%emt 0:00:52]} Nc3 {[%emt 0:00:46]} 39. Qf5 {[%emt 0:01:45]} Nxa2 {[%emt 0:01:59]} 40. Rg4 {[%emt 0:01:17]} Rg6 {[%emt 0:00:01]} 41. e6 {[%emt 0:01:15]} fxe6 {[%emt 0:01:50]} 42. Qxg6 {[%emt 0:00:12]} Qxg6 {[%emt 0:00:04]} 43. Rxg6+ {[%emt 0:00:06]} Kf7 {[%emt 0:00:08]} 44. Rh6 {[%emt 0:00:22]} Nb4 {[%emt 0:00:02]} 45. Rh7+ {[%emt 0:01:10]} 1-0

[Event "4th Tamil Nadu Circuit-IM 2023"]
[Site "Pollachi"]
[Date "2023.11.10"]
[Round "8.1"]
[White "Abdyzhapar, Asylbek"]
[Black "Podolchenko, Evgeniy"]
[Result "1/2-1/2"]
[ECO "C92"]
[WhiteElo "2326"]
[BlackElo "2395"]
[Annotator "RC"]
[PlyCount "31"]
[EventDate "2023.10.23"]
[EventType "tourn"]
[EventCountry "IND"]
[SourceTitle "playchess.com"]
[Source "ChessBase"]
[SourceQuality "1"]
[TimeControl "5400+30"]

1. e4 {[%emt 0:05:10]} e5 {[%emt 0:00:03]} 2. Nf3 {[%emt 0:00:04]} Nc6 {[%emt 0:00:05]} 3. Bb5 {[%emt 0:00:05]} a6 {[%emt 0:00:05]} 4. Ba4 {[%emt 0:00:03]} Nf6 {[%emt 0:00:04]} 5. O-O {[%emt 0:00:06]} Be7 {[%emt 0:00:04]} 6. Re1 {[%emt 0:00:03]} b5 {[%emt 0:00:06]} 7. Bb3 {[%emt 0:00:02]} d6 {[%emt 0:00:09]} 8. c3 {[%emt 0:00:03]} O-O {[%emt 0:00:07]} 9. h3 {[%emt 0:00:01]} Bb7 {[%emt 0:00:06]} 10. d4 {[%emt 0:00:03]} Re8 {[%emt 0:00:07]} 11. Ng5 {[%emt 0:00:02]} Rf8 {[%emt 0:00:06]} 12. Nf3 {[%emt 0:00:03]} Re8 {[%emt 0:00:07]} 13. Ng5 {[%emt 0:00:03]} Rf8 {[%emt 0:00:07]} 14. Nf3 {[%emt 0:00:03]} Re8 {[%emt 0:00:09]} 15. Ng5 {[%emt 0:00:02]} Rf8 {[%emt 0:00:04]} 16. Nf3 {[%emt 0:00:38]} 1/2-1/2

[Event "4th Tamil Nadu Circuit-IM 2023"]
[Site "Pollachi"]
[Date "2023.11.10"]
[Round "8.2"]
[White "Gochelashvili, David"]
[Black "Nandhidhaa, P V"]
[Result "1-0"]
[ECO "B30"]
[WhiteElo "2304"]
[BlackElo "2272"]
[Annotator "RC"]
[PlyCount "53"]
[EventDate "2023.10.23"]
[EventType "tourn"]
[EventCountry "IND"]
[SourceTitle "playchess.com"]
[Source "ChessBase"]
[SourceQuality "1"]
[TimeControl "5400+30"]

1. e4 {[%emt 0:02:10]} c5 {[%emt 0:01:12]} 2. Nf3 {[%emt 0:00:20]} Nc6 {[%emt 0:00:05]} 3. Nc3 {[%emt 0:01:30]} e5 {[%emt 0:02:47]} 4. Bc4 {[%emt 0:04:03]} d6 {[%emt 0:01:01]} 5. d3 {[%emt 0:01:16]} h6 {[%emt 0:08:32]} 6. a3 {[%emt 0:05:32]} Nf6 {[%emt 0:01:46]} 7. Nd2 {[%emt 0:05:32]} Nd4 {[%emt 0:02:33]} 8. Nf1 {[%emt 0:02:12]} Rb8 {[%emt 0:03:44]} 9. Ne3 {[%emt 0:00:29]} b5 {[%emt 0:02:17]} 10. Ba2 {[%emt 0:00:20]} Be7 {[%emt 0:00:50]} 11. O-O {[%emt 0:00:27]} O-O {[%emt 0:02:26]} 12. Ncd5 {[%emt 0:09:38]} Nxd5 {[%emt 0:03:22]} 13. Nxd5 {[%emt 0:00:15]} Bg5 {[%emt 0:02:08]} 14. f4 {[%emt 0:07:40]} exf4 {[%emt 0:00:28]} 15. Bxf4 {[%emt 0:00:25]} Be6 {[%emt 0:02:47]} 16. Qd2 {[%emt 0:07:05]} Bxd5 {[%emt 0:16:43]} 17. Bxd5 {[%emt 0:00:23]} Ne6 {[%emt 0:00:18]} 18. Bxg5 {[%emt 0:16:06]} Qxg5 {[%emt 0:00:13]} 19. Qf2 {[%emt 0:01:48]} a6 {[%emt 0:08:22]} 20. Rae1 {[%emt 0:00:18]} Qe5 {[%emt 0:04:48]} 21. c3 {[%emt 0:00:20]} Rbe8 {[%emt 0:06:58]} 22. Re3 {[%emt 0:01:09]} Re7 {[%emt 0:01:56]} 23. Rf3 {[%emt 0:00:51]} g6 {[%emt 0:00:17]} 24. Rf6 {[%emt 0:01:14]} Kh8 {[%emt 0:08:18]} 25. Rxe6 {[%emt 0:03:32]} Rxe6 {[%emt 0:00:42]} 26. d4 {[%emt 0:00:04]} cxd4 {[%emt 0:00:58]} 27. cxd4 {[%emt 0:00:09]} 1-0

[Event "4th Tamil Nadu Circuit-IM 2023"]
[Site "Pollachi"]
[Date "2023.11.10"]
[Round "8.5"]
[White "Laddha, Yash Jayesh"]
[Black "Shaik Sumer Arsh"]
[Result "1-0"]
[ECO "D00"]
[WhiteElo "2171"]
[BlackElo "2273"]
[Annotator "RC"]
[PlyCount "81"]
[EventDate "2023.10.23"]
[EventType "tourn"]
[EventCountry "IND"]
[SourceTitle "playchess.com"]
[Source "ChessBase"]
[SourceQuality "1"]
[TimeControl "5400+30"]

1. d4 {[%emt 0:02:26]} Nf6 {[%emt 0:00:07]} 2. Nc3 {[%emt 0:00:12]} d5 {[%emt 0:00:07]} 3. Bf4 {[%emt 0:00:04]} c5 {[%emt 0:00:06]} 4. e4 {[%emt 0:00:04]} Nxe4 {[%emt 0:00:07]} 5. Nxe4 {[%emt 0:00:04]} dxe4 {[%emt 0:00:08]} 6. dxc5 {[%emt 0:00:02]} Qa5+ {[%emt 0:05:13]} 7. c3 {[%emt 0:00:05]} Qxc5 {[%emt 0:00:55]} 8. Qa4+ {[%emt 0:00:03]} Bd7 {[%emt 0:07:27]} 9. Qxe4 {[%emt 0:01:28]} Bc6 {[%emt 0:00:05]} 10. Qe3 {[%emt 0:05:16]} Nd7 {[%emt 0:07:11]} 11. Nf3 {[%emt 0:05:32]} Qxe3+ {[%emt 0:21:48]} 12. Bxe3 {[%emt 0:00:14]} e5 {[%emt 0:00:11]} 13. Bc4 {[%emt 0:02:40]} f6 {[%emt 0:06:58]} 14. O-O-O {[%emt 0:03:46]} Bc5 {[%emt 0:03:48]} 15. Bxc5 {[%emt 0:08:24]} Nxc5 {[%emt 0:00:06]} 16. Rhe1 {[%emt 0:00:07]} Ne4 {[%emt 0:07:41]} 17. Bd5 {[%emt 0:06:27]} Nxf2 {[%emt 0:02:00]} 18. Nxe5 {[%emt 0:18:38]} O-O-O {[%emt 0:05:18]} 19. Nxc6 {[%emt 0:04:06]} bxc6 {[%emt 0:00:24]} 20. Be6+ {[%emt 0:00:34]} Kc7 {[%emt 0:10:33]} 21. Rxd8 {[%emt 0:01:22]} Rxd8 {[%emt 0:00:25]} 22. Bf5 {[%emt 0:03:32]} Nd3+ {[%emt 0:03:32]} 23. Bxd3 {[%emt 0:00:05]} Rxd3 {[%emt 0:00:03]} 24. Re7+ {[%emt 0:00:40]} Rd7 {[%emt 0:00:02]} 25. Rxd7+ {[%emt 0:07:19]} Kxd7 {[%emt 0:00:05]} 26. b4 {[%emt 0:00:09]} h5 {[%emt 0:10:44]} 27. Kd2 {[%emt 0:02:36]} Kd6 {[%emt 0:00:30]} 28. Kd3 {[%emt 0:00:13]} g5 {[%emt 0:05:02]} 29. a4 {[%emt 0:03:30]} f5 {[%emt 0:01:39]} 30. g3 {[%emt 0:06:46]} Ke5 {[%emt 0:00:58]} 31. c4 {[%emt 0:01:58]} f4 {[%emt 0:00:43]} 32. gxf4+ {[%emt 0:01:04]} Kxf4 {[%emt 0:00:40]} 33. b5 {[%emt 0:04:38]} Ke5 {[%emt 0:01:05]} 34. bxc6 {[%emt 0:02:35]} Kd6 {[%emt 0:00:03]} 35. Ke4 {[%emt 0:00:04]} Kxc6 {[%emt 0:00:54]} 36. Kf5 {[%emt 0:00:07]} a5 {[%emt 0:01:18]} 37. Kxg5 {[%emt 0:00:22]} Kc5 {[%emt 0:00:15]} 38. Kxh5 {[%emt 0:00:04]} Kxc4 {[%emt 0:00:45]} 39. Kg4 {[%emt 0:00:05]} Kb4 {[%emt 0:00:03]} 40. h4 {[%emt 0:00:02]} Kxa4 {[%emt 0:00:03]} 41. h5 {[%emt 0:00:02]} 1-0

[Event "4th Tamil Nadu Circuit-IM 2023"]
[Site "Pollachi"]
[Date "2023.11.11"]
[Round "9.1"]
[White "Shaik Sumer Arsh"]
[Black "Abdyzhapar, Asylbek"]
[Result "1/2-1/2"]
[ECO "E97"]
[WhiteElo "2273"]
[BlackElo "2326"]
[Annotator "RC"]
[PlyCount "107"]
[EventDate "2023.10.23"]
[EventType "tourn"]
[EventCountry "IND"]
[SourceTitle "playchess.com"]
[Source "ChessBase"]
[SourceQuality "1"]
[TimeControl "5400+30"]

1. d4 {[%emt 0:00:04]} Nf6 {[%emt 0:03:02]} 2. c4 {[%emt 0:00:09]} d6 {[%emt 0:00:05]} 3. Nf3 {[%emt 0:00:14]} g6 {[%emt 0:00:05]} 4. Nc3 {[%emt 0:00:05]} Bg7 {[%emt 0:00:04]} 5. e4 {[%emt 0:00:07]} O-O {[%emt 0:00:06]} 6. Be2 {[%emt 0:00:05]} e5 {[%emt 0:00:07]} 7. Be3 {[%emt 0:00:07]} Ng4 {[%emt 0:00:40]} 8. Bg5 {[%emt 0:00:12]} f6 {[%emt 0:00:05]} 9. Bh4 {[%emt 0:02:18]} g5 {[%emt 0:00:16]} 10. Bg3 {[%emt 0:00:04]} Nh6 {[%emt 0:00:09]} 11. O-O {[%emt 0:01:05]} Nc6 {[%emt 0:00:14]} 12. dxe5 {[%emt 0:09:39]} fxe5 {[%emt 0:00:29]} 13. Qd2 {[%emt 0:15:21]} Nf7 {[%emt 0:04:04]} 14. Nd5 {[%emt 0:10:46]} h6 {[%emt 0:13:08]} 15. b4 {[%emt 0:11:12]} Nd4 {[%emt 0:02:21]} 16. Nxd4 {[%emt 0:08:12]} exd4 {[%emt 0:00:05]} 17. b5 {[%emt 0:00:04]} c6 {[%emt 0:07:28]} 18. bxc6 {[%emt 0:01:47]} bxc6 {[%emt 0:00:04]} 19. Nb4 {[%emt 0:00:03]} Bd7 {[%emt 0:02:32]} 20. Nd3 {[%emt 0:07:46]} c5 {[%emt 0:01:34]} 21. f4 {[%emt 0:04:13]} Bc6 {[%emt 0:01:12]} 22. Bf3 {[%emt 0:12:29]} Qd7 {[%emt 0:00:40]} 23. Rae1 {[%emt 0:01:26]} Rae8 {[%emt 0:00:10]} 24. h3 {[%emt 0:04:09]} gxf4 {[%emt 0:07:50]} 25. Bxf4 {[%emt 0:00:01]} Qd8 {[%emt 0:00:42]} 26. Qf2 {[%emt 0:02:44]} Ng5 {[%emt 0:11:24]} 27. Qg3 {[%emt 0:01:23]} Re6 {[%emt 0:03:53]} 28. Bg4 {[%emt 0:05:27]} Rxe4 {[%emt 0:00:43]} 29. Bxg5 {[%emt 0:02:50]} Rxf1+ {[%emt 0:07:05]} 30. Rxf1 {[%emt 0:00:01]} hxg5 {[%emt 0:00:37]} 31. Bf5 {[%emt 0:01:03]} Re2 {[%emt 0:01:11]} 32. Rf2 {[%emt 0:00:01]} Rxf2 {[%emt 0:00:15]} 33. Nxf2 {[%emt 0:00:08]} Qe7 {[%emt 0:00:30]} 34. Ng4 {[%emt 0:00:57]} a5 {[%emt 0:01:18]} 35. a3 {[%emt 0:00:30]} a4 {[%emt 0:00:08]} 36. Bc2 {[%emt 0:01:05]} Qe6 {[%emt 0:00:33]} 37. Qd3 {[%emt 0:00:39]} Kf8 {[%emt 0:00:46]} 38. Qf1+ {[%emt 0:00:13]} Ke7 {[%emt 0:01:25]} 39. Bf5 {[%emt 0:00:21]} Qf7 {[%emt 0:00:04]} 40. Qe2+ {[%emt 0:00:43]} Kd8 {[%emt 0:00:11]} 41. Qd3 {[%emt 0:00:32]} Kc7 {[%emt 0:00:21]} 42. Be4 {[%emt 0:00:38]} Qe8 {[%emt 0:01:30]} 43. Bxc6 {[%emt 0:00:29]} Qe1+ {[%emt 0:00:05]} 44. Kh2 {[%emt 0:00:30]} Be5+ {[%emt 0:00:05]} 45. g3 {[%emt 0:00:22]} Kxc6 {[%emt 0:00:11]} 46. Qf3+ {[%emt 0:00:03]} Kb6 {[%emt 0:00:27]} 47. Nxe5 {[%emt 0:00:45]} Qxe5 {[%emt 0:00:06]} 48. Qa8 {[%emt 0:00:27]} Kc7 {[%emt 0:02:04]} 49. Qa5+ {[%emt 0:00:49]} Kb8 {[%emt 0:02:10]} 50. Qd8+ {[%emt 0:00:26]} Kb7 {[%emt 0:00:16]} 51. Qd7+ {[%emt 0:00:02]} Kb6 {[%emt 0:00:10]} 52. Qd8+ {[%emt 0:00:09]} Kc6 {[%emt 0:00:09]} 53. Qc8+ {[%emt 0:00:03]} Kb6 {[%emt 0:00:08]} 54. Qd8+ {[%emt 0:00:02]} 1/2-1/2

[Event "4th Tamil Nadu Circuit-IM 2023"]
[Site "Pollachi"]
[Date "2023.11.11"]
[Round "9.3"]
[White "Laddha, Shubh Jayesh"]
[Black "Srihari L"]
[Result "1/2-1/2"]
[ECO "B81"]
[WhiteElo "2373"]
[BlackElo "2225"]
[Annotator "RC"]
[PlyCount "96"]
[EventDate "2023.10.23"]
[EventType "tourn"]
[EventCountry "IND"]
[SourceTitle "playchess.com"]
[Source "ChessBase"]
[SourceQuality "1"]
[TimeControl "5400+30"]

1. e4 {[%emt 0:00:02]} c5 {[%emt 0:00:08]} 2. Nf3 {[%emt 0:00:03]} d6 {[%emt 0:00:06]} 3. d4 {[%emt 0:00:04]} cxd4 {[%emt 0:00:06]} 4. Nxd4 {[%emt 0:00:03]} Nf6 {[%emt 0:00:07]} 5. Nc3 {[%emt 0:00:03]} a6 {[%emt 0:00:05]} 6. h3 {[%emt 0:00:04]} e6 {[%emt 0:00:05]} 7. g4 {[%emt 0:00:03]} Be7 {[%emt 0:00:08]} 8. g5 {[%emt 0:00:08]} Nfd7 {[%emt 0:00:07]} 9. Bg2 {[%emt 0:00:06]} Qc7 {[%emt 0:14:31]} 10. h4 {[%emt 0:25:22]} Nc6 {[%emt 0:01:47]} 11. f4 {[%emt 0:05:32]} b5 {[%emt 0:04:02]} 12. Nxc6 {[%emt 0:02:37]} Qxc6 {[%emt 0:00:33]} 13. Qd4 {[%emt 0:00:12]} O-O {[%emt 0:19:45]} 14. h5 {[%emt 0:01:15]} Qc5 {[%emt 0:06:25]} 15. Qd3 {[%emt 0:10:46]} b4 {[%emt 0:09:50]} 16. Ne2 {[%emt 0:09:48]} Bb7 {[%emt 0:04:03]} 17. g6 {[%emt 0:16:11]} Bf6 {[%emt 0:12:08]} 18. Be3 {[%emt 0:11:19]} Qa5 {[%emt 0:02:55]} 19. Qb3 {[%emt 0:03:01]} Nc5 {[%emt 0:02:25]} 20. Bxc5 {[%emt 0:01:20]} Qxc5 {[%emt 0:01:21]} 21. O-O-O {[%emt 0:03:29]} a5 {[%emt 0:07:21]} 22. Qg3 {[%emt 0:01:55]} fxg6 {[%emt 0:03:02]} 23. hxg6 {[%emt 0:00:38]} h6 {[%emt 0:00:09]} 24. Qg4 {[%emt 0:05:25]} Qc4 {[%emt 0:06:00]} 25. b3 {[%emt 0:01:40]} Qc8 {[%emt 0:00:02]} 26. Rxd6 {[%emt 0:00:59]} a4 {[%emt 0:00:46]} 27. Qxe6+ {[%emt 0:01:20]} Qxe6 {[%emt 0:00:02]} 28. Rxe6 {[%emt 0:00:03]} axb3 {[%emt 0:00:37]} 29. cxb3 {[%emt 0:00:56]} Rxa2 {[%emt 0:00:29]} 30. Kd1 {[%emt 0:00:30]} Ba6 {[%emt 0:01:11]} 31. Rxa6 {[%emt 0:00:23]} Rxa6 {[%emt 0:00:52]} 32. e5 {[%emt 0:00:36]} Rd8+ {[%emt 0:00:20]} 33. Ke1 {[%emt 0:00:13]} Be7 {[%emt 0:00:09]} 34. Kf2 {[%emt 0:00:36]} Bc5+ {[%emt 0:01:24]} 35. Kg3 {[%emt 0:00:11]} Rxg6+ {[%emt 0:00:06]} 36. Kh2 {[%emt 0:00:15]} Rd2 {[%emt 0:02:01]} 37. Bf3 {[%emt 0:00:13]} Be3 {[%emt 0:00:04]} 38. Kh3 {[%emt 0:00:47]} Rxe2 {[%emt 0:02:56]} 39. Bxe2 {[%emt 0:00:09]} Bxf4 {[%emt 0:00:05]} 40. Bc4+ {[%emt 0:01:00]} Kh8 {[%emt 0:00:02]} 41. e6 {[%emt 0:01:07]} Rg3+ {[%emt 0:00:06]} 42. Kh4 {[%emt 0:00:09]} Rg5 {[%emt 0:02:35]} 43. Rd1 {[%emt 0:00:38]} Re5 {[%emt 0:00:25]} 44. Rd8+ {[%emt 0:00:30]} Kh7 {[%emt 0:00:02]} 45. Bd3+ {[%emt 0:00:12]} g6 {[%emt 0:00:05]} 46. Rd7+ {[%emt 0:00:07]} Kh8 {[%emt 0:00:12]} 47. Bxg6 {[%emt 0:01:12]} Rxe6 {[%emt 0:00:07]} 48. Bd3 {[%emt 0:00:30]} Bg5+ {[%emt 0:01:19]} 1/2-1/2

[Event "4th Tamil Nadu Circuit-IM 2023"]
[Site "Pollachi"]
[Date "2023.11.11"]
[Round "9.5"]
[White "Podolchenko, Evgeniy"]
[Black "Gochelashvili, David"]
[Result "1-0"]
[ECO "A48"]
[WhiteElo "2395"]
[BlackElo "2304"]
[Annotator "RC"]
[PlyCount "83"]
[EventDate "2023.10.23"]
[EventType "tourn"]
[EventCountry "IND"]
[SourceTitle "playchess.com"]
[Source "ChessBase"]
[SourceQuality "1"]
[TimeControl "5400+30"]

1. d4 {[%emt 0:02:06]} Nf6 {[%emt 0:00:06]} 2. Nf3 {[%emt 0:00:05]} g6 {[%emt 0:00:37]} 3. Bf4 {[%emt 0:00:05]} d6 {[%emt 0:00:52]} 4. h3 {[%emt 0:00:16]} Bg7 {[%emt 0:00:27]} 5. e3 {[%emt 0:00:05]} O-O {[%emt 0:00:25]} 6. Be2 {[%emt 0:00:37]} Nc6 {[%emt 0:00:27]} 7. O-O {[%emt 0:01:17]} Nd7 {[%emt 0:03:16]} 8. Bh2 {[%emt 0:00:42]} e5 {[%emt 0:00:10]} 9. Nc3 {[%emt 0:05:13]} Re8 {[%emt 0:06:17]} 10. dxe5 {[%emt 0:01:24]} Ncxe5 {[%emt 0:01:05]} 11. Nd4 {[%emt 0:15:37]} Nb6 {[%emt 0:01:10]} 12. a4 {[%emt 0:01:43]} a5 {[%emt 0:13:45]} 13. e4 {[%emt 0:12:55]} Nc6 {[%emt 0:04:18]} 14. Ndb5 {[%emt 0:03:58]} Nb4 {[%emt 0:00:46]} 15. Qd2 {[%emt 0:13:43]} Bd7 {[%emt 0:00:55]} 16. Rfe1 {[%emt 0:01:32]} Be5 {[%emt 0:04:51]} 17. f4 {[%emt 0:02:05]} Bg7 {[%emt 0:00:23]} 18. Bf1 {[%emt 0:00:06]} f5 {[%emt 0:10:44]} 19. exf5 {[%emt 0:02:24]} Rxe1 {[%emt 0:00:19]} 20. Rxe1 {[%emt 0:00:02]} Bxf5 {[%emt 0:00:08]} 21. Ne4 {[%emt 0:02:44]} Bxe4 {[%emt 0:17:14]} 22. Rxe4 {[%emt 0:00:07]} d5 {[%emt 0:00:04]} 23. Re6 {[%emt 0:04:43]} Nc4 {[%emt 0:06:04]} 24. Bxc4 {[%emt 0:01:28]} dxc4 {[%emt 0:00:18]} 25. Qe2 {[%emt 0:00:17]} Qd5 {[%emt 0:02:35]} 26. f5 {[%emt 0:01:53]} Rf8 {[%emt 0:03:22]} 27. Bxc7 {[%emt 0:02:40]} Rxf5 {[%emt 0:07:23]} 28. Re8+ {[%emt 0:06:24]} Bf8 {[%emt 0:00:24]} 29. Bxa5 {[%emt 0:00:27]} Qc5+ {[%emt 0:08:57]} 30. Kh1 {[%emt 0:02:32]} Nd5 {[%emt 0:02:01]} 31. Re4 {[%emt 0:03:41]} Rf2 {[%emt 0:03:05]} 32. Qxc4 {[%emt 0:03:54]} Rxc2 {[%emt 0:00:47]} 33. Qb3 {[%emt 0:02:28]} Kg7 {[%emt 0:01:23]} 34. Be1 {[%emt 0:01:39]} Nf6 {[%emt 0:00:51]} 35. Nd4 {[%emt 0:01:01]} Qc8 {[%emt 0:01:46]} 36. Rf4 {[%emt 0:04:07]} Rc1 {[%emt 0:00:38]} 37. Rf1 {[%emt 0:00:29]} Be7 {[%emt 0:00:27]} 38. Qe3 {[%emt 0:01:41]} Kf7 {[%emt 0:00:30]} 39. Nf3 {[%emt 0:00:35]} Rc5 {[%emt 0:00:38]} 40. Ng5+ {[%emt 0:00:12]} Ke8 {[%emt 0:00:30]} 41. Rxf6 {[%emt 0:00:17]} Rd5 {[%emt 0:00:30]} 42. Re6 {[%emt 0:00:18]} 1-0